{"text_format":"1","workbook":"xlsx","n_sheets":5,"sheets":["Notice","Annexe_1","Explications_par_poste","Précisions_Fusions","Bdd_Recap_Poste"],"not_rendered":{"charts":0,"images":1,"macros":1,"external_links":0,"defined_names":8,"comments":1,"pivot_tables":0},"unopened":[],"bounds":{"document_bytes":16777216,"sheet_cells":100000,"rows_first":2000,"rows_last":500,"rows_between":2000,"halvings":0,"cell_chars":16384,"cell_head_chars":4096},"cells_cut":0,"cells_raw":0,"read":"whole","date_system":"1900"}

{"sheet":"Notice","index":0,"n_rows":2,"n_cols":1,"rows_kept":2,"cut":false,"hidden":false,"merged":[]}
["Notice "]
[{"$f":"\"Dans l'Annexe 1, les champs à renseigner sont mis en évidence en jaune.\"&CHAR(10)&CHAR(10)&\"Une colonne « Struc. Tréso. - Struct. Tréso. de réf.» a été créée. Elle permet de vérifier la cohérence de la structure de vos dépenses en trésorerie en \"&Cell_Annee&\" par rapport à la moyenne constatée dans l’enquête \"&Cell_Annee-1&\". Des écarts trop importants doivent vous alerter.\"&CHAR(10)&CHAR(10)&\"Pour vous aider dans la ventilation de vos dépenses par poste, notamment pour les soins dentaires, nous vous invitons à vous reporter à l'onglet Explications_par_poste.\"&CHAR(10)&CHAR(10)&\"Merci de bien vouloir respecter intégralement la structure du fichier.\"&CHAR(10)&CHAR(10)&\"Pour toute question sur ce fichier, vous pouvez appeler le Fonds CMU au 01 58 10 11 90\"","v":"Dans l'Annexe 1, les champs à renseigner sont mis en évidence en jaune.\n\nUne colonne « Struc. Tréso. - Struct. Tréso. de réf.» a été créée. Elle permet de vérifier la cohérence de la structure de vos dépenses en trésorerie en 2018 par rapport à la moyenne constatée dans l’enquête 2017. Des écarts trop importants doivent vous alerter.\n\nPour vous aider dans la ventilation de vos dépenses par poste, notamment pour les soins dentaires, nous vous invitons à vous reporter à l'onglet Explications_par_poste.\n\nMerci de bien vouloir respecter intégralement la structure du fichier.\n\nPour toute question sur ce fichier, vous pouvez appeler le Fonds CMU au 01 58 10 11 90"}]

{"sheet":"Annexe_1","index":1,"n_rows":54,"n_cols":8,"rows_kept":54,"cut":false,"hidden":false,"merged":[[3,0,3,7],[5,0,5,3],[6,0,7,1],[10,0,11,1],[12,0,13,1],[8,0,9,1],[5,4,5,7],[10,6,10,7],[11,6,11,7],[7,2,7,3],[10,2,10,3],[11,2,11,3],[12,2,12,3],[13,2,13,3],[9,2,9,3],[6,4,7,5],[53,0,53,7],[15,2,15,3],[22,2,22,7],[52,0,52,7],[11,4,11,5],[16,0,19,1],[51,0,51,6],[49,0,49,7],[6,2,6,3],[6,6,7,7],[8,4,9,5],[8,6,9,7],[12,4,13,5],[12,6,13,7],[10,4,10,5],[8,2,8,3]]}
[null,null,"Jour saisie",null,null,"Année TR",2018]
[null,null,"Heure saisie",null,null,"Forfait annuel",408]
[]
[{"$f":"\"ANNEXE 1 – EXERCICE \"&Cell_Annee","v":"ANNEXE 1 – EXERCICE 2018"}]
[]
["Calculs",null,null,null,"Organisme complémentaire"]
[{"$f":"\"Montant à reporter dans le TR \"&Cell_Annee","v":"Montant à reporter dans le TR 2018"},null,"Montant total de la dépense réellement engagée",null,"Organisme complémentaire N° SIREN (9 chiffres)"]
[null,null,{"$f":"SUM($C$34:$D$48)","v":0}]
[{"$f":"\"Permet de se situer par rapport au forfait de \"&TEXT(Cell_Forfait,\"0,00 €\")&\", fixé pour \"&Cell_Annee","v":"Permet de se situer par rapport au forfait de 408,00 €, fixé pour 2018"},null,"Montant de la dépense moyenne par bénéficiaire",null,"Nom de l'organisme"]
[null,null,{"$f":"IF(D21>0,C8/D21,0)","v":0}]
[{"$f":"$F$2& \" * \"&$C$21&\" \"&$C$16","v":"Forfait annuel * Moyenne Effectifs"},null,"Montant maximum de remboursement",null,"Prénom Nom du correspondant"]
[null,null,{"$f":"Cell_Moyenne_Effectifs*Cell_Forfait","v":0},null,"Téléphone du correspondant"]
[{"$f":"\"Montant le moins élevé entre le \"&$C$7&\" et le \"&C11","v":"Montant le moins élevé entre le Montant total de la dépense réellement engagée et le Montant maximum de remboursement"},null,"Estimation du montant total des dépenses CMU-C à prendre en charge par le Fonds CMU",null,"Mail du correspondant"]
[null,null,{"$f":"MIN(($D$21*Cell_Forfait),$C$8)","v":0}]
[]
[null,null,"Effectifs"]
[{"$f":"\"En cas de fusions au cours de l'exercice \"&Cell_Annee&\", merci d'apporter les précisions utiles dans l'onglet Précisions_Fusions\"","v":"En cas de fusions au cours de l'exercice 2018, merci d'apporter les précisions utiles dans l'onglet Précisions_Fusions"},null,"T1"]
[null,null,"T2"]
[null,null,"T3"]
[null,null,"T4"]
[null,null,"Moyenne",{"$f":"SUM(D17:D20)/4","v":0}]
[]
[null,null,"Dépense"]
[null,null,{"$f":"\"Prestations au titre des exercices antérieurs*\"","v":"Prestations au titre des exercices antérieurs*"},{"$f":"\"Prestations au titre de l'exercice**\"","v":"Prestations au titre de l'exercice**"},"Total","Structure Trésorerie",{"$f":"\"Structure Trésorerie de référence***\"","v":"Structure Trésorerie de référence***"},{"$f":"\"Struc. Tréso. - Struct. Tréso. de réf.\"","v":"Struc. Tréso. - Struct. Tréso. de réf."}]
[null,"Total Dépense",{"$f":"SUM(C34:C48)","v":0},0,{"$f":"SUM(C25:D25)","v":0},{"$f":"ROUND(SUM(F34:F48),0)","v":0},1,{"$f":"(F25-G25)*100","v":-100}]
[null,"Ville",{"$f":"SUM(C27:C29)","v":0},0,{"$f":"SUM(C26:D26)","v":0},{"$f":"SUM(F27:F29)","v":0},0.78,-78]
[null,"Honoraires médicaux (1,2)",{"$f":"SUM(C34:C35)","v":0},0,0,{"$f":"SUM(F34:F35)","v":0},0.2,-20]
[null,"Forfaits CMU (10,11,12,13)",{"$f":"SUM(C43:C46)","v":0},0,0,{"$f":"SUM(F43:F46)","v":0},0.16,-16]
[null,"Autres (3,4,5,6,7,8,9)",{"$f":"SUM(C36:C42)","v":0},0,0,{"$f":"SUM(F36:F42)","v":0},0.42,-42]
[null,"Hôpital",{"$f":"SUM(C31:C32)","v":0},0,0,{"$f":"SUM(F31:F32)","v":0},0.22,-22]
[null,"Prestations hospitalières (14)",{"$f":"C47","v":0},0,0,{"$f":"F47","v":0},0.16,-16]
[null,"Forfait hospitalier (15)",0,0,0,{"$f":"F48","v":0},0.06,-6]
[null,"Détail",{"$f":"SUM(C34:C48)","v":0},0,0,{"$f":"ROUND(SUM(F34:F48),0)","v":0},1,-100]
[1,"Honoraires des généralistes",null,null,0,{"$f":"IF($E$33>0,E34/$E$33,0)","v":0},0.1,-10]
[2,"Honoraires des spécialistes",null,null,0,{"$f":"IF($E$33>0,E35/$E$33,0)","v":0},0.08,-8]
[3,"Honoraires dentaires",null,null,0,0,0.04,-4]
[4,"Honoraires paramédicaux",null,null,0,0,0.08,-8]
[5,"Médicaments",null,null,0,0,0.2,-20]
[6,"Dispositifs médicaux",null,null,0,0,0.03,-3]
[7,"Analyse et biologie",null,null,0,0,0.04,-4]
[8,"Frais de transport",null,null,0,0,0.01,-1]
[9,"Autres prestations en nature",null,null,0,0,0,0]
[10,"Forfaits proth. dentaires",null,null,0,0,0.13,-13]
[11,"Forfaits orthodontie",null,null,0,0,0.03,-3]
[12,"Forfaits optique médicale",null,null,0,0,0.03,-3]
[13,"Forfaits proth. auditives",null,null,0,0,0.01,-1]
[14,"Prestations hospitalières",null,null,0,0,0.16,-16]
[15,"Forfait journalier",null,null,0,0,0.06,-6]
[]
["Seules les zones jaunes doivent être renseignées par les OC. Les autres zones sont des zones calculées ou renseignées par le Fonds CMU."]
[]
[{"$f":"\"*Les prestations au titre des exercices antérieurs correspondent à des soins effectués en année N-1, voire N-2, et payés en année N, soit :\"& \" Soins effectués en \"&Cell_Annee-1&\" ou antérieurement à \"&Cell_Annee-1&\" et payés en \"&Cell_Annee","v":"*Les prestations au titre des exercices antérieurs correspondent à des soins effectués en année N-1, voire N-2, et payés en année N, soit : Soins effectués en 2017 ou antérieurement à 2017 et payés en 2018"}]
[{"$f":"\"**Les prestations au titre de l'exercice correspondent à des soins effectués en année N et payés en année N, soit :\"&\" Soins effectués en \"&Cell_Annee&\" et payés en \"&Cell_Annee","v":"**Les prestations au titre de l'exercice correspondent à des soins effectués en année N et payés en année N, soit : Soins effectués en 2018 et payés en 2018"}]
[{"$f":"\"***La Structure trésorerie de référence est établie sur la base de la dépense en trésorerie \"&Cell_Annee-1 & \" pour les OC ayant participé à l'enquête Coût moyen.\"","v":"***La Structure trésorerie de référence est établie sur la base de la dépense en trésorerie 2017 pour les OC ayant participé à l'enquête Coût moyen."}]

{"sheet":"Explications_par_poste","index":2,"n_rows":21,"n_cols":3,"rows_kept":21,"cut":false,"hidden":false,"merged":[[20,0,20,2],[0,0,0,2]]}
["Tableau explicatif de la ventilation par poste"]
["Num poste","Poste de dépense","Commentaires"]
[1,"Honoraires des généralistes","Consultations et soins des médecins généralistes"]
[2,"Honoraires des spécialistes","Consultations et soins des médecins spécialistes pris en charge à 70 % pour la part RO.\nLes consultations et soins des médecins spécialistes pris en charge à 80 % pour la part RO sont considérés comme des actes en milieu hospitalier et sont à renseigner sur la ligne 14"]
[3,"Honoraires dentaires","Partir du détail ligne par ligne pour effectuer la répartition.\nTous les soins curatifs doivent être ventilés dans les honoraires dentaires en ligne 3.\nPour les soins prothétiques et orthodontiques, il faut distinguer :\n– la part du TM, qui est ventilée en ligne 3 ;\n– la part forfait CMU-C (prise en charge réglementée du dépassement), qui est ventilée en ligne 10 ou 11"]
[4,"Honoraires paramédicaux","Infirmiers, kinés, orthoptistes, orthophonistes…\nSages-femme si soins en ville, sinon à ventiler en soins hospitaliers"]
[5,"Médicaments","Toute dépense de médicament à concurrence du TM"]
[6,"Dispositifs médicaux","Tout ce qui relève de la LPP, à concurrence du TM, pansements, petits et gros appareillages…\nPour l'optique et les prothèses auditives :\n– Montant TM en ligne 6 ;\n– Optique, montant dépassement autorisé en forfait optique, médicale en ligne 12 ;\n– Auditif, montant dépassement autoristé en forfait Proth. auditives en ligne 13."]
[7,"Analyse et biologie","Hors actes infirmiers, qui sont ventilés en ligne 4"]
[8,"Frais de transport","À concurrence du TM"]
[9,"Autres prestations en nature","Cures thermales…"]
[10,"Forfaits proth. dentaires","Ne concerne que le montant du dépassement pris en charge dans le cadre du forfait CMU-C.\nLa part du TM doit être ventilée en ligne 3"]
[11,"Forfaits orthodontie","Ne concerne que le montant du dépassement pris en charge dans le cadre du forfait CMU-C.\nLa part du TM doit être ventilée en ligne 3"]
[12,"Forfaits optique médicale","Ne concerne que le montant du dépassement pris en charge dans le cadre du forfait CMU-C.\nLa part du TM doit être ventilée en ligne 6"]
[13,"Forfaits proth. auditives","Ne concerne que le montant du dépassement pris en charge dans le cadre du forfait CMU-C.\nLa part du TM doit être ventilée en ligne 6"]
[14,"Prestations hospitalières","Tous les soins pratiqués en milieu hospitaliers et pris en charge à 80 %\nHors dépassements\nHors forfaits journaliers d'hébergement"]
[15,"Forfait journalier","Forfaits jounaliers d'hébergement :\n– 18,00 € en 2017 et 20,00 € en 2018 par jour en hôpital ou en clinique ;\n– 13,50 € en 2017 et 15,00 € en 2018 par jour en psychiatrie"]
[]
["RO : régime obligatoire",null,"TM : ticket modérateur"]
[]
["Schéma explicatif de la ventilation par poste pour les soins dentaires"]

{"sheet":"Précisions_Fusions","index":3,"n_rows":32,"n_cols":2,"rows_kept":32,"cut":false,"hidden":false,"merged":[[31,0,31,1],[2,0,2,1],[3,0,3,1],[10,0,10,1],[0,0,0,1],[5,0,5,1],[8,0,8,1]]}
["Informations sur les fusions"]
[]
[{"$f":"\"Si une fusion est intervenue à effet du 1er janvier \"&Cell_Annee&\", elle doit être prise en compte à sa date d'effet à la fois au niveau des dépenses, mais également au niveau des effectifs CMU-C.\"","v":"Si une fusion est intervenue à effet du 1er janvier 2018, elle doit être prise en compte à sa date d'effet à la fois au niveau des dépenses, mais également au niveau des effectifs CMU-C."}]
["Afin de faciliter le suivi de ces fusions, merci de mentionner les coordonnées des OC intégrés (N° Siren, Nom) "]
[]
["Organisme absorbant"]
[{"$f":"Cell_Siren","v":0},{"$f":"Annexe_1!$G$9","v":0}]
[]
["Organismes absorbés"]
[]
[{"$f":"(Cell_Annee)","v":2018}]
["N° SIREN","Nom organisme"]
[]
[]
[]
[]
[]
[]
[]
[]
[]
[]
[]
[]
[]
[]
[]
[]
[]
[]
[]
["Si une fusion est intervenue en N-1, en principe le TR doit être complété par les deux OC concernés, sauf en cas de disparition complète de l'un des deux orgarnismes."]

{"sheet":"Bdd_Recap_Poste","index":4,"n_rows":31,"n_cols":10,"rows_kept":31,"cut":false,"hidden":false,"merged":[]}
["Annee","Exercice","Forfait","Ville","Detail","Prestation","Montant","Nom_Organisme","Num_Siren","Date_Saisie"]
[{"$f":"Cell_Annee","v":2018},"Antérieur","Non","Oui","Med","Honoraires des généralistes",{"$f":"SUMPRODUCT((Annexe_1!$B$34:$B$48=Bdd_Recap_Poste!F2)*(Annexe_1!$C$34:$C$48))","v":0},{"$f":"Annexe_1!$G$9","v":0},{"$f":"Annexe_1!$G$7","v":0},{"$f":"TODAY()","v":"2019-04-17"}]
[2018,"Antérieur","Non","Oui","Med","Honoraires des spécialistes",{"$f":"SUMPRODUCT((Annexe_1!$B$34:$B$48=Bdd_Recap_Poste!F3)*(Annexe_1!$C$34:$C$48))","v":0},{"$f":"Annexe_1!$G$9","v":0},{"$f":"Annexe_1!$G$7","v":0},{"$f":"$J$2","v":"2019-04-17"}]
[2018,"Antérieur","Non","Oui","Dent","Honoraires dentaires",{"$f":"SUMPRODUCT((Annexe_1!$B$34:$B$48=Bdd_Recap_Poste!F4)*(Annexe_1!$C$34:$C$48))","v":0},{"$f":"Annexe_1!$G$9","v":0},{"$f":"Annexe_1!$G$7","v":0},{"$f":"$J$2","v":"2019-04-17"}]
[2018,"Antérieur","Non","Oui","Aut","Honoraires paramédicaux",{"$f":"SUMPRODUCT((Annexe_1!$B$34:$B$48=Bdd_Recap_Poste!F5)*(Annexe_1!$C$34:$C$48))","v":0},{"$f":"Annexe_1!$G$9","v":0},{"$f":"Annexe_1!$G$7","v":0},"2019-04-17"]
[2018,"Antérieur","Non","Oui","Aut","Médicaments",{"$f":"SUMPRODUCT((Annexe_1!$B$34:$B$48=Bdd_Recap_Poste!F6)*(Annexe_1!$C$34:$C$48))","v":0},{"$f":"Annexe_1!$G$9","v":0},{"$f":"Annexe_1!$G$7","v":0},"2019-04-17"]
[2018,"Antérieur","Non","Oui","Aut","Dispositifs médicaux",{"$f":"SUMPRODUCT((Annexe_1!$B$34:$B$48=Bdd_Recap_Poste!F7)*(Annexe_1!$C$34:$C$48))","v":0},{"$f":"Annexe_1!$G$9","v":0},{"$f":"Annexe_1!$G$7","v":0},"2019-04-17"]
[2018,"Antérieur","Non","Oui","Aut","Analyse et biologie",{"$f":"SUMPRODUCT((Annexe_1!$B$34:$B$48=Bdd_Recap_Poste!F8)*(Annexe_1!$C$34:$C$48))","v":0},{"$f":"Annexe_1!$G$9","v":0},{"$f":"Annexe_1!$G$7","v":0},"2019-04-17"]
[2018,"Antérieur","Non","Oui","Aut","Frais de transport",{"$f":"SUMPRODUCT((Annexe_1!$B$34:$B$48=Bdd_Recap_Poste!F9)*(Annexe_1!$C$34:$C$48))","v":0},{"$f":"Annexe_1!$G$9","v":0},{"$f":"Annexe_1!$G$7","v":0},"2019-04-17"]
[2018,"Antérieur","Non","Oui","Aut","Autres prestations en nature",{"$f":"SUMPRODUCT((Annexe_1!$B$34:$B$48=Bdd_Recap_Poste!F10)*(Annexe_1!$C$34:$C$48))","v":0},{"$f":"Annexe_1!$G$9","v":0},{"$f":"Annexe_1!$G$7","v":0},"2019-04-17"]
[2018,"Antérieur","Oui","Oui","Dent","Forfaits proth. dentaires",{"$f":"SUMPRODUCT((Annexe_1!$B$34:$B$48=Bdd_Recap_Poste!F11)*(Annexe_1!$C$34:$C$48))","v":0},{"$f":"Annexe_1!$G$9","v":0},{"$f":"Annexe_1!$G$7","v":0},"2019-04-17"]
[2018,"Antérieur","Oui","Oui","Dent","Forfaits orthodontie",{"$f":"SUMPRODUCT((Annexe_1!$B$34:$B$48=Bdd_Recap_Poste!F12)*(Annexe_1!$C$34:$C$48))","v":0},{"$f":"Annexe_1!$G$9","v":0},{"$f":"Annexe_1!$G$7","v":0},"2019-04-17"]
[2018,"Antérieur","Oui","Oui","Aut","Forfaits optique médicale",{"$f":"SUMPRODUCT((Annexe_1!$B$34:$B$48=Bdd_Recap_Poste!F13)*(Annexe_1!$C$34:$C$48))","v":0},{"$f":"Annexe_1!$G$9","v":0},{"$f":"Annexe_1!$G$7","v":0},"2019-04-17"]
[2018,"Antérieur","Oui","Oui","Aut","Forfaits proth. auditives",{"$f":"SUMPRODUCT((Annexe_1!$B$34:$B$48=Bdd_Recap_Poste!F14)*(Annexe_1!$C$34:$C$48))","v":0},{"$f":"Annexe_1!$G$9","v":0},{"$f":"Annexe_1!$G$7","v":0},"2019-04-17"]
[2018,"Antérieur","Non","Non","Hop","Prestations hospitalières",{"$f":"SUMPRODUCT((Annexe_1!$B$34:$B$48=Bdd_Recap_Poste!F15)*(Annexe_1!$C$34:$C$48))","v":0},{"$f":"Annexe_1!$G$9","v":0},{"$f":"Annexe_1!$G$7","v":0},"2019-04-17"]
[2018,"Antérieur","Non","Non","For","Forfait journalier",{"$f":"SUMPRODUCT((Annexe_1!$B$34:$B$48=Bdd_Recap_Poste!F16)*(Annexe_1!$C$34:$C$48))","v":0},{"$f":"Annexe_1!$G$9","v":0},{"$f":"Annexe_1!$G$7","v":0},"2019-04-17"]
[2018,"Exercice","Non","Oui","Med","Honoraires des généralistes",{"$f":"SUMPRODUCT((Annexe_1!$B$34:$B$48=Bdd_Recap_Poste!F17)*(Annexe_1!$E$34:$E$48))","v":0},{"$f":"Annexe_1!$G$9","v":0},{"$f":"Annexe_1!$G$7","v":0},"2019-04-17"]
[2018,"Exercice","Non","Oui","Med","Honoraires des spécialistes",{"$f":"SUMPRODUCT((Annexe_1!$B$34:$B$48=Bdd_Recap_Poste!F18)*(Annexe_1!$E$34:$E$48))","v":0},{"$f":"Annexe_1!$G$9","v":0},{"$f":"Annexe_1!$G$7","v":0},"2019-04-17"]
[2018,"Exercice","Non","Oui","Dent","Honoraires dentaires",{"$f":"SUMPRODUCT((Annexe_1!$B$34:$B$48=Bdd_Recap_Poste!F19)*(Annexe_1!$E$34:$E$48))","v":0},{"$f":"Annexe_1!$G$9","v":0},{"$f":"Annexe_1!$G$7","v":0},"2019-04-17"]
[2018,"Exercice","Non","Oui","Aut","Honoraires paramédicaux",{"$f":"SUMPRODUCT((Annexe_1!$B$34:$B$48=Bdd_Recap_Poste!F20)*(Annexe_1!$E$34:$E$48))","v":0},{"$f":"Annexe_1!$G$9","v":0},{"$f":"Annexe_1!$G$7","v":0},"2019-04-17"]
[2018,"Exercice","Non","Oui","Aut","Médicaments",{"$f":"SUMPRODUCT((Annexe_1!$B$34:$B$48=Bdd_Recap_Poste!F21)*(Annexe_1!$E$34:$E$48))","v":0},{"$f":"Annexe_1!$G$9","v":0},{"$f":"Annexe_1!$G$7","v":0},"2019-04-17"]
[2018,"Exercice","Non","Oui","Aut","Dispositifs médicaux",{"$f":"SUMPRODUCT((Annexe_1!$B$34:$B$48=Bdd_Recap_Poste!F22)*(Annexe_1!$E$34:$E$48))","v":0},{"$f":"Annexe_1!$G$9","v":0},{"$f":"Annexe_1!$G$7","v":0},"2019-04-17"]
[2018,"Exercice","Non","Oui","Aut","Analyse et biologie",{"$f":"SUMPRODUCT((Annexe_1!$B$34:$B$48=Bdd_Recap_Poste!F23)*(Annexe_1!$E$34:$E$48))","v":0},{"$f":"Annexe_1!$G$9","v":0},{"$f":"Annexe_1!$G$7","v":0},"2019-04-17"]
[2018,"Exercice","Non","Oui","Aut","Frais de transport",{"$f":"SUMPRODUCT((Annexe_1!$B$34:$B$48=Bdd_Recap_Poste!F24)*(Annexe_1!$E$34:$E$48))","v":0},{"$f":"Annexe_1!$G$9","v":0},{"$f":"Annexe_1!$G$7","v":0},"2019-04-17"]
[2018,"Exercice","Non","Oui","Aut","Autres prestations en nature",{"$f":"SUMPRODUCT((Annexe_1!$B$34:$B$48=Bdd_Recap_Poste!F25)*(Annexe_1!$E$34:$E$48))","v":0},{"$f":"Annexe_1!$G$9","v":0},{"$f":"Annexe_1!$G$7","v":0},"2019-04-17"]
[2018,"Exercice","Oui","Oui","Dent","Forfaits proth. dentaires",{"$f":"SUMPRODUCT((Annexe_1!$B$34:$B$48=Bdd_Recap_Poste!F26)*(Annexe_1!$E$34:$E$48))","v":0},{"$f":"Annexe_1!$G$9","v":0},{"$f":"Annexe_1!$G$7","v":0},"2019-04-17"]
[2018,"Exercice","Oui","Oui","Dent","Forfaits orthodontie",{"$f":"SUMPRODUCT((Annexe_1!$B$34:$B$48=Bdd_Recap_Poste!F27)*(Annexe_1!$E$34:$E$48))","v":0},{"$f":"Annexe_1!$G$9","v":0},{"$f":"Annexe_1!$G$7","v":0},"2019-04-17"]
[2018,"Exercice","Oui","Oui","Aut","Forfaits optique médicale",{"$f":"SUMPRODUCT((Annexe_1!$B$34:$B$48=Bdd_Recap_Poste!F28)*(Annexe_1!$E$34:$E$48))","v":0},{"$f":"Annexe_1!$G$9","v":0},{"$f":"Annexe_1!$G$7","v":0},"2019-04-17"]
[2018,"Exercice","Oui","Oui","Aut","Forfaits proth. auditives",{"$f":"SUMPRODUCT((Annexe_1!$B$34:$B$48=Bdd_Recap_Poste!F29)*(Annexe_1!$E$34:$E$48))","v":0},{"$f":"Annexe_1!$G$9","v":0},{"$f":"Annexe_1!$G$7","v":0},"2019-04-17"]
[2018,"Exercice","Non","Non","Hop","Prestations hospitalières",{"$f":"SUMPRODUCT((Annexe_1!$B$34:$B$48=Bdd_Recap_Poste!F30)*(Annexe_1!$E$34:$E$48))","v":0},{"$f":"Annexe_1!$G$9","v":0},{"$f":"Annexe_1!$G$7","v":0},"2019-04-17"]
[2018,"Exercice","Non","Non","For","Forfait journalier",{"$f":"SUMPRODUCT((Annexe_1!$B$34:$B$48=Bdd_Recap_Poste!F31)*(Annexe_1!$E$34:$E$48))","v":0},{"$f":"Annexe_1!$G$9","v":0},{"$f":"Annexe_1!$G$7","v":0},"2019-04-17"]